Cogmind - Beta 14 *** ADVENTURER MODE // 2024.10.11 @ 13:10:03 Player: Sovereign Result: Destroyed by G-47 Trooper with Particle Gun Performance ------------- Evolutions (1) 500 Regions Visited (2) 400 Robots Destroyed (56) 280 Value Destroyed (1333) 1333 Prototype IDs (3) 60 Alien Tech Used (0) 0 Bonus (182) 182 TOTAL SCORE: 2755 Bonus ------- High Alert Combat Kills 182 Cogmind --------- Core Integrity 0/400 Matter 273/300 Energy 100/100 System Corruption 1% Temperature Cool (9) Movement Treading (160) Location -9/Materials Parts ------- > --- POWER (1) -------- (None) > --- PROPULSION (3) --- Light Treads Light Treads Light Treads > --- UTILITY (3) ------ Medium Storage Unit ECM Suite > --- WEAPON (2) ------- Improved Assault Rifle Improved Assault Rifle > --- INVENTORY (10) --- Improved Ion Engine Wheel Small Storage Unit Structural Scanner Medium Laser Improved Assault Rifle Plasma Cutter Peak State ------------ > --- POWER ------------ Improved Ion Engine > --- PROPULSION ------- Wheel Wheel Compact Wheel > --- UTILITY ---------- Small Storage Unit Medium Storage Unit Medium Matter Pod > --- WEAPON ----------- Improved Assault Rifle Improved Assault Rifle > --- INVENTORY -------- Improved Ion Engine Medium Laser Improved Assault Rifle Improved Assault Rifle Plasma Cutter [Rating: 15] Favorites ----------- Power Light Ion Engine Engine Light Ion Engine Propulsion Wheel Treads Light Treads Wheel Wheel Utility Medium Storage Unit Device ECM Suite Storage Medium Storage Unit Weapon Improved Assault Rifle Energy Gun Medium Laser Ballistic Gun Improved Assault Rifle Ballistic Cannon Light Cannon Launcher Grenade Launcher Build | -11 -10 -9 ------- Run | Yrd Mat Mat Slots Evolved 2 | . . 2 Power . | . . . Propulsion 1 | . . 1 Utility 1 | . . 1 Weapon . | . . . Parts Attached 33 | 6 13 14 Power 3 | 1 2 . Engine 3 | 1 2 . Core . | . . . Reactor . | . . . Propulsion 11 | 2 2 7 Treads 3 | . . 3 Leg . | . . . Wheel 8 | 2 2 4 Hover . | . . . Flight . | . . . Utility 7 | 1 4 2 Device 1 | . . 1 Storage 6 | 1 4 1 Processor . | . . . Hackware . | . . . Protection . | . . . Artifact . | . . . Weapon 12 | 2 5 5 Energy Gun 1 | 1 . . Energy Cannon . | . . . Ballistic Gun 8 | 1 3 4 Ballistic Cannon 2 | . 2 . Launcher 1 | . . 1 Special Weapon . | . . . Impact Weapon . | . . . Slashing Weapon . | . . . Piercing Weapon . | . . . Special Melee Weapon . | . . . Unidentified Prototypes 1 | . 1 . Parts Lost 8 | . . 8 Power 1 | . . 1 Propulsion 4 | . . 4 Utility 1 | . . 1 Weapon 2 | . . 2 Highest Loss Streak 6 | . . 6 To Critical Strikes . | . . . Average Slot Usage (%) 92 | . 98 87 Engine 9 | . 14 4 Treads 8 | . . 15 Wheel 20 | . 28 13 Device 1 | . . 3 Storage 27 | . 26 27 Energy Gun 3 | . 6 . Ballistic Gun 16 | . 12 20 Ballistic Cannon 4 | . 9 . Peak Build Rating 15 | 6 13 15 Average Rating 10 | 5 8 12 On Entrance 6 | . 6 13 Naked Turns . | . . . Heaviest Build 30 | 11 30 30 Greatest Support 60 | 26 26 60 Greatest Overweight (x) 7 | . 1 7 Average Overweight (x) . | . . . Largest Inventory Capacity 15 | 8 15 10 Average Capacity 9 | 7 9 10 Most Carried 9 | 5 9 8 Average Carried 6 | 3 7 6 Final Capacity 10 | 8 10 10 Final Carried 7 | 4 7 7 Class Distribution -------------------- 100% | Mutant Dominant Class ---------------- Mutant | -10/Materials Mutant | -9/Materials Resources | -11 -10 -9 ----------- Run | Yrd Mat Mat Matter Collected 1151 | 240 243 668 Remotely . | . . . Salvage Created 1411 | . 231 1180 Parts 101 | . 26 75 Haulers Intercepted . | . . . Recyclers Shooed . | . . . Parts Field Recycled . | . . . Retrieved Matter . | . . . Parts Self-Destructed . | . . . Prevented . | . . . Kills | -11 -10 -9 ------- Run | Yrd Mat Mat Combat Hostiles Destroyed 40 | . 11 29 Guns 26 | . 8 18 Cannons 3 | . 3 . AOE 11 | . . 11 Classes Destroyed 9 | . 4 5 Worker 3 | . 1 2 Builder 5 | . . 5 Recycler 1 | . . 1 Watcher 7 | . 3 4 Swarmer 13 | . 9 4 Grunt 20 | . 2 18 Brawler 1 | . . 1 Duelist 1 | . . 1 Sentry 5 | . . 5 Best Kill Streak 17 | . 3 17 Combat Bots Only 11 | . 3 11 Max Kills in Single Turn 4 | . 1 4 Gunslinging 1 | . . 1 Exploded 4 | . . 4 Melee . | . . . Uniques/NPCs Destroyed . | . . . Combat | -11 -10 -9 -------- Run | Yrd Mat Mat Hostile Shots Fired 198 | . 49 149 Missed 57 | . 15 42 Damage Taken 1545 | . 231 1314 Core 435 | . 35 400 Absorbed by Shields . | . . . Ignored by Resistances 458 | . 76 382 Core Remaining (%) 93 | 100 86 . Volleys Fired 105 | . 32 73 Largest 2 | . 2 2 Hottest 85 | . 85 53 Shots Fired 206 | . 64 142 Gun 168 | . 42 126 Cannon 22 | . 22 . Launcher 16 | . . 16 Special . | . . . Kinetic 170 | . 44 126 Thermal 20 | . 20 . Explosive 16 | . . 16 Electromagnetic . | . . . Robot Hit Streak 22 | . 12 22 Robot Miss Streak 2 | . 2 2 Penetration Max . | . . . Secondary Targets 4 | . 1 3 Max Gunslinging Chain 1 | . 1 1 Shots Hit Robots 156 | . 40 116 Core Hits 78 | . 15 63 Critical Kills . | . . . Critical Parts Destroyed 1 | . 1 . Critical Strikes 1 | . 1 . Destroy 1 | . 1 . Melee Attacks . | . . . Impact . | . . . Slashing . | . . . Piercing . | . . . Sneak Attacks . | . . . Combat Hostiles . | . . . Follow-up Attacks . | . . . Damage Inflicted 3297 | . 608 2689 Guns 1860 | . 352 1508 Cannons 256 | . 256 . Explosions 1181 | . . 1181 Melee . | . . . Ramming . | . . . Kinetic 1927 | . 419 1508 Thermal 189 | . 189 . Explosive 1181 | . . 1181 Electromagnetic . | . . . Impact . | . . . Slashing . | . . . Piercing . | . . . Highest Corruption 2 | . 2 1 Average Corruption 1 | . 1 1 Corruption Purged . | . . . Corruption Blocked . | . . . Effects 5 | . 4 1 Message Errors 3 | . 2 1 Heat Flow Errors 1 | . 1 . Data Loss (major) 1 | . 1 . Overload Shots . | . . . Overflow Damage 39 | . 9 30 Projectiles 9 | . 9 . Explosions 30 | . . 30 Melee . | . . . Knockbacks 3 | . 3 . Impact . | . . . Kinetic 3 | . 3 . Secondary . | . . . Self-Inflicted Damage 134 | . . 134 Shots 8 | . . 8 Rammed . | . . . Targets Rammed . | . . . Kicked . | . . . Crushed . | . . . Highest Temperature 239 | . 239 34 Average Temperature 77 | . 90 9 Received Heat Transfer 633 | . 36 597 Siege Activations . | . . . Robots Corrupted . | . . . Combat Hostiles . | . . . Parts Fried . | . . . Impact Corruptions . | . . . Robots Melted . | . . . Combat Hostiles . | . . . Parts Melted 1 | . 1 . Heat Transferred 555 | . 555 . Parts Sabotaged . | . . . Parts Stolen . | . . . Parts Stripped . | . . . Power Chain Reactions . | . . . Alert | -11 -10 -9 ------- Run | Yrd Mat Mat Peak Influence 677 | . 146 677 Initial . | . . . Average 185 | . 37 358 Maximum Alert Level 2 | . . 2 Low Security (%) 66 | 100 100 28 Level 1 5 | . . 12 Level 2 27 | . . 58 Level 3 . | . . . Level 4 . | . . . Level 5 . | . . . High Security . | . . . Max Security . | . . . Squads Dispatched 4 | . 1 3 Investigation 1 | . 1 . Extermination . | . . . Reinforcement 2 | . . 2 Assault 1 | . . 1 Garrison . | . . . Intercept . | . . . Searches Triggered . | . . . Construction Impeded . | . . . Haulers Reinforced . | . . . Active Scanning Responses . | . . . Cargo Convoy Interrupts . | . . . Stealth | -11 -10 -9 --------- Run | Yrd Mat Mat Distress Signals 3 | . . 3 Communications Jammed . | . . . Distress Signals . | . . . Times Spotted 53 | . 14 39 Peak Tracking Total 8 | . 3 8 Tactical Retreats 1 | . . 1 Traps | -11 -10 -9 ------- Run | Yrd Mat Mat Traps Triggered 3 | . 2 1 Indirectly . | . . . Trap Hack Attempts . | . . . Triggered . | . . . Disarmed . | . . . Reprogrammed 6 | . 6 . Reused . | . . . Traps Extracted . | . . . Installed . | . . . Triggered . | . . . Machines | -11 -10 -9 ---------- Run | Yrd Mat Mat Machines Disabled 3 | . . 3 Max in Single Turn 1 | . . 1 Machines Repaired . | . . . Machines Dismantled . | . . . Machines Sabotaged . | . . . Overloaded Fab Kills . | . . . Hacking | -11 -10 -9 --------- Run | Yrd Mat Mat Machines Accessed 12 | . 8 4 Terminals 9 | . 6 3 Fabricators . | . . . Repair Stations 1 | . . 1 Recycling Units 2 | . 2 . Scanalyzers . | . . . Garrison Access . | . . . Total Hacks 42 | . 35 7 Successful 35 | . 28 7 Failed 7 | . 7 . Catastrophic . | . . . Database Lockouts . | . . . Manual 1 | . . 1 Terminals 24 | . 18 6 Fabricators . | . . . Repair Stations 1 | . . 1 Recycling Units 17 | . 17 . Scanalyzers . | . . . Garrison Access . | . . . Terminal Hacks 17 | . 12 5 Record 5 | . 2 3 Robot Analysis 1 | . 1 . Prototype ID Bank 1 | . 1 . Level Access Points 1 | . . 1 Alert Level 3 | . 3 . Unreport Threat 2 | . 2 . Reprogram Traps 1 | . 1 . Dispatch Records 1 | . 1 . Zone Layout 2 | . 1 1 Fabricator Hacks . | . . . Repair Station Hacks 1 | . . 1 Scan Component 1 | . . 1 Recycling Unit Hacks 16 | . 16 . Recycle Component 13 | . 13 . Process 1 | . 1 . Retrieve Components 2 | . 2 . Scanalyzer . | . . . Garrison Access Hacks . | . . . Unauthorized Hacks 1 | . . 1 Terminals 1 | . . 1 Assimilate 1 | . . 1 Fabricators . | . . . Repair Stations . | . . . Recycling Units . | . . . Scanalyzers . | . . . Garrison Access . | . . . Data Cores Recovered . | . . . Used . | . . . Hacking Detections 8 | . 6 2 Full Trace Events 2 | . 2 . Feedback Events 1 | . 1 . Corruption 1 | . 1 . Feedback Blocked . | . . . Robot Schematics Acquired . | . . . Robots Built . | . . . Authchips . | . . . Time . | . . . Total Robot Build Rating . | . . . Part Schematics Acquired . | . . . Parts Built . | . . . Authchips . | . . . Time . | . . . Total Part Build Rating . | . . . Parts Repaired . | . . . Time . | . . . Parts Recycled 13 | . 13 . Recycled Matter 501 | . 501 . Retrieved Matter . | . . . Retrieved Components 12 | . 12 . Parts Scanalyzed . | . . . Part Schematics Acquired . | . . . Parts Damaged . | . . . Bothacking | -11 -10 -9 ------------ Run | Yrd Mat Mat Used RIF Installer . | . . . Robots Hacked . | . . . Non-combat . | . . . Combat . | . . . Robot Hacks Applied . | . . . Relay Couplers Released . | . . . Fabnet Peak Effective % . | . . . Robots Rewired . | . . . Allies Hacked . | . . . Hacks Repelled . | . . . Allies | -11 -10 -9 -------- Run | Yrd Mat Mat Total Allies . | . . . Largest Group . | . . . Highest-Rated Group . | . . . Highest-Rated Ally . | . . . Total Orders . | . . . Ally Attacks . | . . . Total Damage . | . . . Kills . | . . . Allies Corrupted . | . . . Allies Melted . | . . . Intel | -11 -10 -9 ------- Run | Yrd Mat Mat Robot Analysis Total 1 | . 1 . Derelict Logs Recovered . | . . . Drone Launches . | . . . Drone Recoveries . | . . . Exploration | -11 -10 -9 ------------- Run | Yrd Mat Mat Turns Passed 1842 | 140 835 867 Spaces Moved 1259 | 84 720 455 Core 23 | 14 . 9 Treads 150 | . . 150 Legs . | . . . Wheels 1086 | 70 720 296 Hover . | . . . Flight . | . . . Fastest Speed 50 | 50 90 86 Average Speed 99 | 83 90 118 Slowest Speed 400 | 90 115 400 Overloaded Moves . | . . . Propulsion Burnouts . | . . . Robots Hopped . | . . . Cave-ins Triggered . | . . . Exploration Rate (%) 46 | 5 82 53 Regions Visited 2 Branch Regions . Pre-discovered Areas . | . . . Known Exits Taken . | . . . Unknown Exits Taken 2 | 1 1 . Scrap Searched . | . . . Spaces Dug . | . . . Terrain Destroyed 91 | . . 91 Melee . | . . . Projectile . | . . . AOE 91 | . . 91 Terrain Rammed . | . . . Walls Destroyed . | . . . Machines Disabled . | . . . Actions | -11 -10 -9 --------- Run | Yrd Mat Mat Total 1645 | 153 849 643 Wait 155 | 55 14 86 Move 1257 | 83 719 455 Hop . | . . . Pick Up 67 | 9 46 12 Fast Attach 2 | 1 1 . Attach 17 | 5 2 10 Detach . | . . . Swap 14 | . 10 4 Drop 28 | . 25 3 Fire 105 | . 32 73 Melee . | . . . Ram . | . . . Kick . | . . . Crush . | . . . Escape Stasis . | . . . Rewire . | . . . Trap . | . . . Miscellaneous . | . . . Route ------- -11/Scrapyard -10/Materials (discovered 4 exits: *Mat x3 / [*Min]) -9/Materials (discovered 3 exits: Mat x3) History --------- Turn | Location | Event 9 | -11/Scrapyard | Discovered new exit (range 15) 141 | -11/Scrapyard | Entered Materials 325 | -10/Materials | Build established: Mutant 441 | -10/Materials | Discovered new exit (range 20) 522 | -10/Materials | Discovered new exit (range 16) 745 | -10/Materials | Discovered new exit (range 14) 855 | -10/Materials | Discovered new exit (range 16) 976 | -10/Materials | Entered another Materials area 976 | -9/Materials | Evolved 2 slots: Propulsion x1, Utility x1 1302 | -9/Materials | Identified exit to Materials 1354 | -9/Materials | Core integrity fell below 50% 1375 | -9/Materials | Core integrity fell below 20% 1397 | -9/Materials | Destroyed 11 combat bots 1399 | -9/Materials | Lost 6 parts (1p3n2w) 1776 | -9/Materials | First assault squad dispatched 1843 | -9/Materials | Destroyed by G-47 Trooper with Particle Gun Last Messages --------------- 01783_ Connecting with Terminal... [Achievement: True Hacker] >>Trojan(Assimilate) Trojan loaded successfully. Testing... System interface override in place. Installed Trojans can be viewed by examining an interactive machine. See effect description details by clicking on the Trojan name. 01783_ K-01 Serf collects debris. 01795_ Acquired 53 matter. 01795_ K-01 Serf collects debris. 01823_ L/DLB,M,ER#T4FN5VEM>P 01832_ C-30 ARC bursts open, deploying its payload. 01832_ G-47 Trooper unfolds itself. 01832_ G-34 Mercenary unfolds itself. 01832_ M-13 Machinist unfolds itself. 01836_ G-34 Mercenary destroyed. 01841_ Terminal disabled. Map ----- +----------------------------------------------------+ | ???????????????????# """ ##"S # # # | | ??????????????????## """ ##""" # # | | ??????????????????# """ ## "" + # # | | ??????????????????## " " """ ## # | | ???????????????????# "R" ####+#### # # | | ???????????????????# """ !#??# #??# ! # # | | ???????????????????############## #### * [ # # | | ??????????????????????????????# ######+#### # | | ??????????????????????????????# * =#!### | | ??????????????????????????????# T * ##### | | ??????????????????????????????# ##""" | | ??????????????????????????????# ##### ##" ! | | ?????????????????????????????####+#####?# ##" | | ?????????????????????????????# #?# | | ?????????????????????????????# " #?# | | ?????????????????????????????# T #?# | | ?????????????????????????????# " #?# ## | | ?????????????????????????????# #?# ##### | | ?????????????????????????????# """ ### ##### | | ?????????????????##########??# """ + | | ?????????????????# a #??# """ ### ##### | | ?????????????????# """ #??# #?### #???? | | ?????????????????# """ #################/##??? | | ?????????????????# """ !# # #??? | | ?????????????????# g =# # #??? | | ?????????????????# g @=# # """"" #??? | | ?????????????????# " "%#! # """"""""" #??? | | ?????????????????# """=# # """ """ #??? | | ?????????????????# % *#? # #??? | | ?????????????????######+###? ####+##########??? | | ????????????????????# " ###+### ! ########??? | | ????????????????????# ! #### | | ????????????????????# T % | | ????????????????????#| | | ????????????????????# ####### ########## | | ????????????????????#######?????## ##????????# | | ?????????????????????????????????# #?????????# | | ?????????????????????????????????# #?????????# | | ?????????????????????????????????# #?????????# | | ?????????????????????????????????# #?????????# | | ?????????????????????????????????# #?????????# | | ?????????????????????????????????# #?????????# | | ????????????????????????????????? #?????????# | | ????????????????????????????????? +?????????# | | ???????????????????????????????? #?????????# | | ????????????????????????????????## #?????????? | | ?????????????????????????????????# ??????????? | | ??????????????